bitfinex/quotes_BTCUSD_20240905
["timestamp","ask_amount","ask_price","bid_price","bid_amount"]
[1725498926576,1.522596,58122.0,58121.0,0.00164]
[1725498927453,1.522596,58122.0,58121.0,1e-06]
[1725498927874,1.53579302,58122.0,58121.0,1e-06]
[1725498928088,1.53679302,58122.0,58121.0,1e-06]
[1725498928523,1.47199302,58122.0,58121.0,1e-06]
[1725498928767,1.47199302,58122.0,58115.0,0.00164]
[1725498928768,1.594036,58116.0,58115.0,0.00164]
[1725498929124,1.98545463,58116.0,58115.0,0.00164]
[1725498930102,1.98645463,58116.0,58115.0,0.00164]
[1725498930545,1.98745463,58116.0,58115.0,0.00164]
[1725498932262,1.709036,58116.0,58115.0,0.00164]
[1725498932488,1.97745463,58116.0,58115.0,0.00164]
[1725498933001,1.209036,58116.0,58115.0,0.00164]
[1725498933225,1.21355763,58116.0,58115.0,0.08384]
[1725498933438,1.21355763,58116.0,58115.0,0.15024]
[1725498933649,1.22673775,58116.0,58115.0,0.15024]
[1725498934077,0.71742212,58116.0,58115.0,0.15024]
[1725498934349,0.71742212,58116.0,58115.0,0.62986269]
[1725498934597,0.71742212,58116.0,58115.0,0.65548208]
[1725498934812,0.71742212,58116.0,58115.0,0.55300453]
[1725498935702,0.74042212,58116.0,58115.0,0.68110147]
[1725498935932,0.74042212,58116.0,58115.0,0.55300453]
[1725498936393,0.222448,58116.0,58115.0,0.55300453]
[1725498936628,0.222448,58116.0,58115.0,0.68110147]
[1725498936876,0.222448,58116.0,58115.0,0.55300453]
[1725498937096,0.002,58116.0,58115.0,0.55300453]
[1725498937306,0.604242,58116.0,58115.0,0.55300453]
[1725498937530,0.363345,58116.0,58115.0,0.55300453]
[1725498937738,0.122448,58116.0,58115.0,0.55300453]
[1725498938156,0.363345,58116.0,58115.0,0.55300453]
[1725498938633,0.463345,58116.0,58115.0,0.55300453]
[1725498941525,0.222448,58116.0,58115.0,0.55300453]
[1725498942176,0.102,58116.0,58115.0,0.55300453]
[1725498942414,0.102,58116.0,58115.0,1.24162068]
[1725498942655,0.120445,58118.0,58116.0,0.0778]
[1725498942868,0.361323,58120.0,58118.0,0.1437]
[1725498943084,0.120442,58119.0,58118.0,0.12796679]
[1725498943306,0.120442,58119.0,58118.0,0.38205746]
[1725498943517,0.361327,58119.0,58118.0,0.54639224]
[1725498943729,0.361327,58119.0,58118.0,0.64877634]
[1725498944150,0.120442,58119.0,58118.0,0.64877586]
[1725498944639,0.220442,58119.0,58118.0,0.64877586]
[1725498945285,0.222442,58119.0,58118.0,0.65377586]
[1725498945499,0.102,58119.0,58118.0,0.65377586]
[1725498945715,0.120441,58120.0,58119.0,0.1381]
[1725498945959,0.120441,58120.0,58119.0,0.59695991]
[1725498946173,0.120441,58120.0,58119.0,0.61760219]
[1725498946407,0.0134479,58123.0,58120.0,0.120439]
[1725498946628,0.120434,58123.0,58122.0,0.1426]
[1725498947083,0.240858,58126.0,58123.0,0.1426]
[1725498947328,0.361286,58126.0,58125.0,0.0609]
[1725498947590,0.25403675,58133.0,58125.0,0.0609]
[1725498947591,0.25403675,58133.0,58128.0,0.1427]
[1725498947834,1.2891742,58143.0,58136.0,0.0778]
[1725498947835,0.0269742,58143.0,58136.0,0.0778]
[1725498948061,0.3342408,58137.0,58136.0,0.0778]
[1725498948749,0.01647856,58143.0,58139.0,0.0768]
[1725498948751,0.240773,58146.0,58139.0,0.0768]
[1725498948965,0.120391,58144.0,58143.0,0.07679901]
[1725498949176,0.120391,58144.0,58143.0,0.60062626]
[1725498949393,0.240776,58146.0,58144.0,0.0654]
[1725498949394,0.120387,58146.0,58144.0,0.0654]
[1725498949619,0.24075,58152.0,58148.0,0.0751]
[1725498949620,0.120374,58152.0,58148.0,0.0751]
[1725498949882,0.120374,58152.0,58148.0,0.12630044]
[1725498950111,0.120374,58152.0,58150.0,0.0751]
[1725498950349,0.120371,58154.0,58151.0,0.0654]
[1725498950576,0.000816,58155.0,58153.0,0.0751]
[1725498950816,0.000816,58155.0,58153.0,0.12630044]
[1725498951047,0.000816,58155.0,58154.0,0.33603352]
[1725498951268,0.000816,58155.0,58154.0,0.21566352]
[1725498951945,0.121183,58155.0,58154.0,0.21222468]
[1725498952461,0.221183,58155.0,58154.0,0.16102424]
[1725498952677,0.222183,58155.0,58154.0,0.21222468]
[1725498952884,0.223183,58155.0,58154.0,0.22422468]
[1725498953103,0.222183,58155.0,58154.0,0.22422468]
[1725498953318,0.222183,58155.0,58154.0,0.17302424]
[1725498953765,0.703653,58155.0,58154.0,0.22422468]
[1725498953972,0.703653,58155.0,58154.0,0.17302424]
[1725498954411,0.703653,58155.0,58154.0,0.1625]
[1725498954412,0.704653,58155.0,58154.0,0.1625]
[1725498958295,0.704653,58155.0,58154.0,0.18302424]
[1725498959620,0.945388,58155.0,58154.0,0.18302424]
[1725498959831,0.968388,58155.0,58154.0,0.11762424]
[1725498962504,0.968388,58155.0,58154.0,0.0971]
[1725498966023,0.727653,58155.0,58154.0,0.0971]
[1725498966254,0.704653,58155.0,58154.0,0.0971]
[1725498970328,0.704653,58155.0,58154.0,0.1629]
[1725498971616,0.704653,58155.0,58154.0,0.0971]
[1725498973593,0.968388,58155.0,58154.0,0.0971]
[1725498973812,0.968388,58155.0,58154.0,0.022]
[1725498975473,1.273023,58155.0,58154.0,0.022]
[1725498976363,1.272023,58155.0,58154.0,0.012]
[1725498976583,1.276023,58155.0,58154.0,0.012]
[1725498977230,0.842691,58147.0,58146.0,0.0792]
[1725498977472,0.965691,58147.0,58146.0,0.0792]
[1725498977692,0.965691,58147.0,58146.0,0.02054879]
[1725498977693,1.20646,58147.0,58146.0,0.02054879]
[1725498977920,0.361189,58141.0,58140.0,0.13001639]
[1725498978154,0.601982,58141.0,58140.0,0.09936721]
[1725498978387,0.942775,58141.0,58140.0,0.09936721]
[1725498978618,0.965775,58141.0,58140.0,0.09936721]
[1725498979064,0.965775,58141.0,58140.0,0.0788]
[1725498979543,0.966775,58141.0,58140.0,0.0908]
[1725498980209,0.966775,58141.0,58140.0,0.11136721]
[1725498980690,0.966775,58141.0,58140.0,0.12236721]
[1725498980691,0.967775,58141.0,58140.0,0.12236721]
[1725498981195,0.98426888,58141.0,58140.0,0.12236721]
[1725498983619,0.98426888,58141.0,58140.0,0.1735836]
[1725498983824,0.98426888,58141.0,58140.0,0.17375305]
[1725498986709,0.98426888,58141.0,58140.0,0.12236721]
[1725498987149,0.98426888,58141.0,58140.0,0.58140766]
[1725498987446,0.98426888,58141.0,58140.0,0.12236721]
[1725498987676,0.98426888,58141.0,58140.0,0.58140711]
[1725498988563,0.98426888,58141.0,58140.0,0.50432835]
[1725498988779,0.98426888,58141.0,58140.0,0.19957191]
[1725498988992,0.98426888,58141.0,58140.0,0.58153296]
[1725498989642,0.98426888,58141.0,58140.0,0.58155612]
[1725498990323,0.98326888,58141.0,58140.0,0.57055612]
[1725498990549,0.98226888,58141.0,58140.0,0.09936721]
[1725498990777,0.98226888,58141.0,58140.0,0.56255372]
[1725498991005,0.98226888,58141.0,58140.0,0.18259739]
[1725498991296,0.98226888,58141.0,58140.0,0.09936721]
[1725498991512,0.98326888,58141.0,58140.0,0.10836721]
[1725498991730,0.98326888,58141.0,58140.0,0.4903276]
[1725498991944,0.98326888,58141.0,58140.0,0.56761369]
[1725498992157,0.98326888,58141.0,58140.0,0.56761238]
[1725498992638,0.98326888,58141.0,58140.0,0.56761248]
[1725498993509,0.98326888,58141.0,58140.0,0.59026576]
[1725498993747,0.98326888,58141.0,58140.0,0.48732616]
[1725498994017,0.98226888,58141.0,58140.0,0.48132622]
[1725498994236,0.98226888,58141.0,58140.0,0.48432622]
[1725498994452,0.98226888,58141.0,58140.0,0.48532622]
[1725498994672,0.98226888,58141.0,58140.0,0.48132622]
[1725498994896,0.98226888,58141.0,58140.0,0.48432622]
[1725498995136,0.98226888,58141.0,58140.0,0.48532622]
[1725498995552,0.98226888,58141.0,58140.0,0.58844072]
[1725498995766,0.98226888,58141.0,58140.0,0.48532622]
[1725498996617,0.98226888,58141.0,58140.0,0.58843965]
[1725498996829,0.98226888,58141.0,58140.0,0.48532622]
[1725498999712,0.98226888,58141.0,58140.0,0.61422625]
[1725499002358,0.98226888,58141.0,58140.0,0.48082622]
[1725499004356,0.98226888,58141.0,58140.0,0.48082703]
[1725499004569,0.98226888,58141.0,58140.0,0.60977723]
[1725499005033,0.11649388,58141.0,58140.0,0.60577723]
[1725499005234,0.0862,58159.0,58140.0,0.60577723]
[1725499005235,0.000816,58155.0,58144.0,0.18599]
[1725499005461,0.000816,58155.0,58144.0,0.1423]
[1725499005462,0.120388,58145.0,58144.0,0.1423]
[1725499005698,0.361153,58147.0,58146.0,0.14]
[1725499005910,0.361153,58147.0,58146.0,1.05654622]
[1725499006129,0.361153,58147.0,58146.0,1.23180048]
[1725499006635,0.361153,58147.0,58146.0,1.07707799]
[1725499006841,0.361153,58147.0,58146.0,0.54244311]
[1725499007262,0.704922,58147.0,58146.0,0.54244311]
[1725499007730,0.701922,58147.0,58146.0,0.52189432]
[1725499007957,0.461153,58147.0,58146.0,0.54244311]
[1725499008179,0.462153,58147.0,58146.0,0.54944311]
[1725499008393,0.462153,58147.0,58146.0,0.54244311]
[1725499008394,0.461153,58147.0,58146.0,0.54244311]
[1725499008611,0.462153,58147.0,58146.0,0.55644311]
[1725499009027,0.462153,58147.0,58146.0,0.55144311]
[1725499010075,0.461969,58147.0,58146.0,0.54244311]
[1725499010276,0.462969,58147.0,58146.0,0.54944311]
[1725499010692,0.48113595,58147.0,58146.0,0.55844311]
[1725499012511,0.72190495,58147.0,58146.0,0.55844311]
[1725499013444,0.74490495,58147.0,58146.0,0.41844311]
[1725499013668,0.98567395,58147.0,58146.0,0.41844311]
[1725499013895,0.74490495,58147.0,58146.0,0.41844311]
[1725499014117,0.98567395,58147.0,58146.0,0.41844311]
[1725499014774,0.74490495,58147.0,58146.0,0.41844311]
[1725499015242,0.98567395,58147.0,58146.0,0.41844311]
[1725499017279,0.98567395,58147.0,58146.0,0.54748053]
[1725499017728,0.98567395,58147.0,58146.0,0.52168847]
[1725499017729,1.04577395,58147.0,58146.0,0.52168847]
[1725499017950,1.28654295,58147.0,58146.0,0.49588041]
[1725499018176,1.28654295,58147.0,58146.0,0.11398609]
[1725499018615,1.28654295,58147.0,58146.0,0.49594969]
[1725499018836,1.28554295,58147.0,58146.0,0.48694969]
[1725499019055,1.28454295,58147.0,58146.0,0.47994969]
[1725499019500,1.29454295,58147.0,58146.0,0.48094969]
[1725499020123,1.30154295,58147.0,58146.0,0.48194969]
[1725499020585,1.30154295,58147.0,58146.0,0.48094969]
[1725499020803,1.29454295,58147.0,58146.0,0.09898609]
[1725499021015,1.30254295,58147.0,58146.0,0.09998609]
[1725499021233,1.56096158,58147.0,58146.0,0.07319194]
[1725499021456,1.55296158,58147.0,58146.0,0.05164315]
[1725499021705,1.56196158,58147.0,58146.0,0.07319194]
[1725499021886,1.56796158,58147.0,58146.0,0.07419194]
[1725499022147,1.56796158,58147.0,58146.0,0.05364315]
[1725499022352,1.55896158,58147.0,58146.0,0.05264315]
[1725499022581,1.55896158,58147.0,58146.0,0.001]
[1725499022793,1.56796158,58147.0,58146.0,0.0536456]
[1725499023207,1.56196158,58147.0,58146.0,0.0731937]
[1725499023672,1.56896158,58147.0,58146.0,0.0741937]
[1725499024106,1.40792308,58147.0,58146.0,0.0741937]
[1725499025254,1.40092308,58147.0,58146.0,0.0731937]
[1725499025479,1.39192308,58147.0,58146.0,0.02054879]
[1725499025945,1.39992308,58147.0,58146.0,0.001]
[1725499026165,0.99167395,58147.0,58146.0,0.02154879]
[1725499026355,1.09905408,58147.0,58146.0,0.07846736]
[1725499026624,1.10405408,58147.0,58146.0,0.48198711]
[1725499026841,0.97367395,58147.0,58146.0,0.61143203]
[1725499027110,0.97367395,58147.0,58146.0,0.48231975]
[1725499027326,1.08105408,58147.0,58146.0,0.48231975]
[1725499027950,1.10405408,58147.0,58146.0,0.48231975]
[1725499028178,1.26506278,58147.0,58146.0,0.48231975]
[1725499029484,1.26506278,58147.0,58146.0,0.47731975]
[1725499031256,1.14467878,58147.0,58146.0,0.47731975]
[1725499031457,1.26506278,58147.0,58146.0,0.47731975]
[1725499032026,0.99667395,58147.0,58146.0,0.47731975]
[1725499032280,0.99667395,58147.0,58146.0,0.58059074]
[1725499032544,0.99667395,58147.0,58146.0,0.47731975]
[1725499033881,0.75590495,58147.0,58146.0,0.47731975]
[1725499034094,0.51513595,58147.0,58146.0,0.58059074]
[1725499034306,0.51513595,58147.0,58146.0,0.66660849]
[1725499034560,0.51513595,58147.0,58146.0,0.53751975]
[1725499035211,0.50713595,58147.0,58146.0,0.66659727]
[1725499035426,0.50913595,58147.0,58146.0,0.53751975]
[1725499035638,0.24536695,58147.0,58146.0,0.53751975]
[1725499035821,0.12498295,58147.0,58146.0,0.53751975]
[1725499036127,0.12498295,58147.0,58146.0,0.65790575]
[1725499036348,0.12498295,58147.0,58146.0,0.53751975]
[1725499036565,0.12498295,58147.0,58146.0,0.53651975]
[1725499036765,0.11998295,58147.0,58146.0,0.53651975]
[1725499037253,0.002816,58147.0,58146.0,0.53651975]
[1725499038292,0.002816,58147.0,58146.0,0.53643687]
[1725499039605,0.1232,58147.0,58146.0,0.53643687]
[1725499039843,0.2232,58147.0,58146.0,0.53643687]
[1725499041187,0.01689362,58148.0,58146.0,0.53643687]
[1725499041396,0.13727562,58148.0,58147.0,0.38188808]
[1725499041605,0.361146,58148.0,58147.0,0.38188808]
[1725499041816,0.361146,58148.0,58147.0,0.53129774]
[1725499042686,0.60591,58148.0,58147.0,0.53129774]
[1725499042899,0.60591,58148.0,58147.0,0.40226714]
[1725499043115,0.365146,58148.0,58147.0,0.40226714]
[1725499043323,0.4829892,58148.0,58147.0,0.53129774]
[1725499043758,0.4819892,58148.0,58147.0,0.53129774]
[1725499043972,0.4829892,58148.0,58147.0,0.53129774]
[1725499046724,0.7237532,58148.0,58147.0,0.53129774]
[1725499048052,0.83109823,58148.0,58147.0,0.53129774]
[1725499048688,0.83109823,58148.0,58147.0,0.53131484]
[1725499048920,0.83109823,58148.0,58147.0,0.02037906]
[1725499049128,0.83109823,58148.0,58147.0,0.53131505]
[1725499049330,0.83109823,58148.0,58147.0,0.51093599]
[1725499049516,0.83109823,58148.0,58147.0,0.53131505]
[1725499049883,0.83109823,58148.0,58147.0,0.40228028]
[1725499054702,0.83109823,58148.0,58147.0,0.40228302]
[1725499055169,0.83109823,58148.0,58147.0,0.46668302]
[1725499055170,0.2422252,58148.0,58147.0,0.46668302]
[1725499055401,0.2422252,58148.0,58147.0,1.08353728]
[1725499055402,0.466146,58148.0,58147.0,1.08353728]
[1725499057370,0.70691,58148.0,58147.0,1.08353728]
[1725499059010,0.70691,58148.0,58147.0,0.54888302]
[1725499059228,0.70691,58148.0,58147.0,1.08516493]
[1725499059468,0.105,58148.0,58147.0,1.23997777]
[1725499059695,0.000816,58148.0,58147.0,0.54711502]
[1725499060994,0.001816,58148.0,58147.0,0.55411502]
[1725499061404,0.002816,58148.0,58147.0,0.56411502]
[1725499061820,0.102816,58148.0,58147.0,0.56411502]
[1725499062244,0.101816,58148.0,58147.0,0.55711502]
[1725499062686,0.002816,58148.0,58147.0,0.56711502]
[1725499066943,0.123198,58148.0,58147.0,0.56711502]
[1725499068877,0.363962,58148.0,58147.0,0.56711502]
[1725499069115,0.71207103,58148.0,58147.0,0.56711502]
[1725499069319,0.604726,58148.0,58147.0,0.56711502]
[1725499069734,0.604726,58148.0,58147.0,1.10173975]
[1725499075248,0.604726,58148.0,58147.0,1.10173981]
[1725499078758,0.604726,58148.0,58147.0,1.10174183]
[1725499080346,0.604726,58148.0,58147.0,1.10174212]
[1725499081777,0.603726,58148.0,58147.0,1.09174212]
[1725499082613,0.602726,58148.0,58147.0,1.08174212]
[1725499083086,0.603726,58148.0,58147.0,1.09174212]
[1725499083488,0.362962,58148.0,58147.0,1.09174212]
[1725499083693,0.001,58148.0,58147.0,0.567099]
[1725499084069,0.362146,58148.0,58147.0,0.567099]
[1725499084281,0.60291,58148.0,58147.0,0.567099]
[1725499085708,0.60291,58148.0,58147.0,0.557099]
[1725499086125,0.60391,58148.0,58147.0,0.565099]
[1725499086711,0.60291,58148.0,58147.0,0.555099]
[1725499087157,0.60391,58148.0,58147.0,0.564099]
[1725499087382,0.60391,58148.0,58147.0,0.555099]
[1725499087627,0.60291,58148.0,58147.0,0.547099]
[1725499087837,0.60491,58148.0,58147.0,0.566099]
[1725499088047,0.60291,58148.0,58147.0,0.557099]
[1725499088251,0.60191,58148.0,58147.0,0.547099]
[1725499088470,0.60291,58148.0,58147.0,0.557099]
[1725499088672,0.60291,58148.0,58147.0,0.567099]
[1725499088673,0.60391,58148.0,58147.0,0.567099]
[1725499089112,0.60291,58148.0,58147.0,0.557099]
[1725499089591,0.60391,58148.0,58147.0,0.567099]
[1725499090055,0.944674,58148.0,58147.0,0.423899]
[1725499090254,1.35881258,58148.0,58147.0,0.03201106]
[1725499090506,1.31748523,58148.0,58147.0,0.03201106]
[1725499090718,1.273538,58148.0,58147.0,0.09368173]
[1725499090933,1.37888303,58148.0,58147.0,0.02201106]
[1725499091145,1.37988303,58148.0,58147.0,0.03001106]
[1725499091378,1.37988303,58148.0,58147.0,0.0612907]
[1725499091379,1.38388303,58148.0,58147.0,0.0612907]
[1725499091597,1.38288303,58148.0,58147.0,0.0532907]
[1725499092031,1.39088303,58148.0,58147.0,0.0532907]
[1725499092245,1.38188303,58148.0,58147.0,0.0532907]
[1725499092480,1.37888303,58148.0,58147.0,0.0532907]
[1725499092709,1.271538,58148.0,58147.0,0.0532907]
[1725499092924,1.38088303,58148.0,58147.0,0.07910001]
[1725499093169,1.38088303,58148.0,58147.0,0.3835684]
[1725499093383,1.38088303,58148.0,58147.0,0.40394746]
[1725499093594,1.212438,58148.0,58147.0,0.40394746]
[1725499093813,1.31978303,58148.0,58147.0,0.53313186]
[1725499094273,1.31978303,58148.0,58147.0,0.53304446]
[1725499099437,0.971674,58148.0,58147.0,0.40394181]
[1725499099658,1.07901903,58148.0,58147.0,0.53304446]
[1725499100101,1.07901903,58148.0,58147.0,0.40394181]
[1725499100354,0.467146,58148.0,58147.0,0.40394181]
[1725499100568,0.226382,58148.0,58147.0,0.55254181]
[1725499100803,0.006,58148.0,58147.0,1.24210204]
[1725499101895,0.002,58148.0,58147.0,1.24210204]
[1725499102333,0.100816,58149.0,58147.0,1.23780204]
[1725499102541,0.120382,58148.0,58147.0,0.32123424]
[1725499102755,0.120382,58148.0,58147.0,1.23775707]
[1725499103643,0.120382,58148.0,58147.0,1.17585707]
[1725499103644,0.361146,58148.0,58147.0,1.17585707]
[1725499103876,0.361146,58148.0,58147.0,1.18185707]
[1725499104321,0.361146,58148.0,58147.0,0.11041106]
[1725499104570,0.361146,58148.0,58147.0,1.18180579]
[1725499107154,0.361146,58148.0,58147.0,0.49229834]
[1725499107805,0.361962,58148.0,58147.0,0.49229834]
[1725499108689,0.361962,58148.0,58147.0,1.18180657]
[1725499108898,0.000816,58148.0,58147.0,1.18180657]
[1725499109115,0.121198,58148.0,58147.0,1.24470657]
[1725499109327,0.361962,58148.0,58147.0,1.24470657]
[1725499109555,0.361962,58148.0,58147.0,1.08984132]
[1725499111962,0.121198,58148.0,58147.0,1.08984132]
[1725499116995,0.000816,58148.0,58147.0,1.08984132]
[1725499119202,1e-08,58148.0,58147.0,1.21022532]
[1725499119414,1e-08,58148.0,58147.0,1.45099432]
[1725499120102,1e-08,58148.0,58147.0,1.45095091]
[1725499120322,1e-08,58148.0,58147.0,1.69171991]
[1725499120539,1e-08,58148.0,58147.0,1.45095091]
[1725499120763,1e-08,58148.0,58147.0,1.69171991]
[1725499122303,1e-08,58148.0,58147.0,1.45095091]
[1725499124277,1e-08,58148.0,58147.0,1.08979791]
[1725499124879,1e-08,58148.0,58147.0,1.21018191]
[1725499125805,1e-08,58148.0,58147.0,1.08979791]
[1725499129886,0.12038201,58148.0,58147.0,1.08979791]
[1725499130302,0.12038201,58148.0,58147.0,0.94449791]
[1725499130303,0.60191001,58148.0,58147.0,0.94449791]
[1725499133579,0.12038201,58148.0,58147.0,0.94449791]
[1725499133794,0.36114601,58148.0,58147.0,1.08259791]
[1725499134232,0.12038201,58148.0,58147.0,1.08259791]
[1725499134445,0.12038201,58148.0,58147.0,0.40588058]
[1725499134446,0.120382,58148.0,58147.0,0.40588058]
[1725499134653,0.120382,58148.0,58147.0,0.54198058]
[1725499134863,0.121382,58148.0,58147.0,0.54998058]
[1725499135509,0.121382,58148.0,58147.0,0.54996721]
[1725499136154,0.121382,58148.0,58147.0,0.54796721]
[1725499136396,0.121382,58148.0,58147.0,0.55296721]
[1725499136770,0.122382,58148.0,58147.0,0.56496721]
[1725499140107,0.002,58148.0,58147.0,0.56496721]
[1725499140541,0.002,58148.0,58147.0,0.5649672]
[1725499142633,0.122382,58148.0,58147.0,0.5649672]
[1725499142859,0.363146,58148.0,58147.0,0.5021672]
[1725499143078,0.363962,58148.0,58147.0,0.5021672]
[1725499144399,0.363962,58148.0,58147.0,1.03676814]
[1725499146163,0.363962,58148.0,58147.0,1.26547683]
[1725499147171,0.604726,58148.0,58147.0,1.26547683]
[1725499148502,0.604726,58148.0,58147.0,1.19017683]
[1725499148921,0.668326,58148.0,58147.0,1.19017683]
[1725499149126,0.90909,58148.0,58147.0,1.19017683]
[1725499149336,0.90909,58148.0,58147.0,0.96150439]
[1725499150844,0.90909,58148.0,58147.0,1.11653817]
[1725499151468,0.90909,58148.0,58147.0,0.96150439]
[1725499152888,1.593818,58148.0,58147.0,0.42688328]
[1725499153099,1.63876523,58148.0,58147.0,0.53024953]
[1725499153323,1.63876523,58148.0,58147.0,0.42688328]
[1725499153571,1.63876523,58148.0,58147.0,0.50437918]
[1725499153805,1.63776523,58148.0,58147.0,0.49337918]
[1725499154025,0.12039,58144.0,58143.0,0.05166436]
[1725499154251,0.01,58147.0,58139.0,0.05167184]
[1725499154252,0.120396,58141.0,58139.0,0.05167184]
[1725499154463,0.766482,58141.0,58139.0,0.05167184]
[1725499154673,0.766482,58141.0,58137.0,0.001632]
[1725499154674,1.271068,58141.0,58137.0,0.001632]
[1725499155774,1.37841303,58141.0,58137.0,0.001632]
[1725499156033,1.53960069,58141.0,58137.0,0.001632]
[1725499156693,1.53960069,58141.0,58140.0,0.002632]
[1725499156694,1.55560069,58141.0,58140.0,0.002632]
[1725499158869,1.57278312,58141.0,58140.0,0.002632]
[1725499161708,1.06345743,58141.0,58140.0,0.002632]
[1725499161911,0.99895743,58141.0,58140.0,0.002632]
[1725499164160,0.73516443,58141.0,58140.0,0.002632]
[1725499165686,0.73516443,58141.0,58140.0,0.02218342]
[1725499170280,1.00369712,58141.0,58140.0,0.02218342]
[1725499171343,0.73516443,58141.0,58140.0,0.02218342]
[1725499171561,0.73516443,58141.0,58140.0,0.07365812]
[1725499171980,0.73516443,58141.0,58140.0,0.02218342]
[1725499172192,0.73516443,58141.0,58140.0,0.0736586]
[1725499173026,0.73516443,58141.0,58140.0,0.02218342]
[1725499173436,0.73516443,58141.0,58140.0,0.07366121]
[1725499173647,0.73516443,58141.0,58140.0,0.07366315]
[1725499175198,0.73516443,58141.0,58140.0,0.02218342]
[1725499176060,0.73516443,58141.0,58140.0,0.07366871]
[1725499176276,0.73516443,58141.0,58140.0,0.02218342]
[1725499176503,0.73516443,58141.0,58140.0,0.07366871]
[1725499178059,0.84253486,58141.0,58140.0,0.07366871]
[1725499178971,0.84253486,58141.0,58140.0,0.02218342]
[1725499179181,0.84253486,58141.0,58140.0,0.07367602]
[1725499179403,1.08332786,58141.0,58140.0,0.07367602]
[1725499179623,0.84253486,58141.0,58140.0,0.07367602]
[1725499180532,1.08332786,58141.0,58140.0,0.02218342]
[1725499180764,1.17102786,58141.0,58140.0,0.02218342]
[1725499181206,1.17102786,58141.0,58140.0,0.002632]
[1725499181429,1.17102786,58141.0,58140.0,0.02218342]
[1725499181857,1.17102786,58141.0,58140.0,0.002632]
[1725499184111,1.17102786,58141.0,58140.0,0.02218342]
[1725499184769,1.10632786,58141.0,58140.0,0.07368288]
[1725499185005,1.10632786,58141.0,58140.0,0.02218342]
[1725499185217,1.10632786,58141.0,58140.0,0.09939548]
[1725499185506,1.10632786,58141.0,58140.0,0.02218342]
[1725499187047,1.10632786,58141.0,58140.0,0.09939548]
[1725499187498,1.10632786,58141.0,58140.0,0.02218342]
[1725499187720,1.10632786,58141.0,58140.0,0.09939548]
[1725499188354,1.10632786,58141.0,58140.0,0.02218342]
[1725499188810,1.10632786,58141.0,58140.0,0.09939548]
[1725499189273,1.10632786,58141.0,58140.0,0.02218342]
[1725499189510,1.10632786,58141.0,58140.0,0.48136332]
[1725499190188,1.10632786,58141.0,58140.0,0.02218342]
[1725499190443,1.10632786,58141.0,58140.0,0.3845984]
[1725499190901,1.10632786,58141.0,58140.0,0.40414982]
[1725499192276,1.10632786,58141.0,58140.0,0.50725181]
[1725499192504,0.86553486,58141.0,58140.0,0.40414982]
[1725499192720,1.10632786,58141.0,58140.0,0.50730968]
[1725499193420,1.10632786,58141.0,58140.0,0.40414982]
[1725499193890,0.86553486,58141.0,58140.0,0.40414982]
[1725499194366,1.10632786,58141.0,58140.0,0.40414982]
[1725499194597,0.86553486,58141.0,58140.0,0.53302731]
[1725499195074,1.10632786,58141.0,58140.0,0.53302731]
[1725499195295,1.10632786,58141.0,58140.0,0.40414982]
[1725499195520,1.10632786,58141.0,58140.0,0.53302731]
[1725499196664,1.10632786,58141.0,58140.0,0.40414982]
[1725499199902,1.10632786,58141.0,58140.0,0.53328374]
[1725499200121,1.16872786,58141.0,58140.0,0.40414982]
[1725499200361,1.29427509,58141.0,58140.0,0.50745975]
[1725499200594,1.29427509,58141.0,58140.0,0.02218342]
[1725499200890,1.29427509,58141.0,58140.0,0.07384683]
[1725499200891,1.53506809,58141.0,58140.0,0.07384683]
[1725499201569,1.98069525,58141.0,58140.0,0.02218342]
[1725499201809,1.82718844,58141.0,58140.0,0.002632]
[1725499202290,1.76986109,58141.0,58140.0,0.001632]
[1725499202780,1.79786109,58141.0,58140.0,0.002632]
[1725499203238,1.81083119,58141.0,58140.0,0.001632]
[1725499203465,1.81083119,58141.0,58140.0,0.002632]
[1725499203466,1.81983119,58141.0,58140.0,0.002632]
[1725499203927,1.80583119,58141.0,58140.0,0.002632]
[1725499204393,1.81883119,58141.0,58140.0,0.002632]
[1725499204668,1.80583119,58141.0,58140.0,0.002632]
[1725499204887,1.76986109,58141.0,58140.0,0.001632]
[1725499205350,1.78986109,58141.0,58140.0,0.001632]
[1725499205810,1.77786109,58141.0,58140.0,0.025486]
[1725499206281,1.76986109,58141.0,58140.0,0.025486]
[1725499206740,1.53706809,58141.0,58140.0,0.025486]
[1725499206977,1.19415043,58141.0,58140.0,0.025486]
[1725499207208,1.31352086,58141.0,58140.0,0.025486]
[1725499208372,1.35112086,58141.0,58140.0,0.025486]
[1725499211285,1.41542086,58141.0,58140.0,0.025486]
[1725499211501,1.46036809,58141.0,58140.0,0.025486]
[1725499211938,1.70116109,58141.0,58140.0,0.025486]
[1725499213453,0.97995743,58141.0,58140.0,0.106886]
[1725499213677,0.97995743,58141.0,58140.0,0.20400891]
[1725499213678,0.87995743,58141.0,58140.0,0.20400891]
[1725499213902,0.87995743,58141.0,58140.0,0.57257657]
[1725499214355,0.86795743,58141.0,58140.0,0.57257657]
[1725499214843,0.62716443,58141.0,58140.0,0.57257657]
[1725499215306,0.63116443,58141.0,58140.0,0.57257657]
[1725499215524,0.373189,58141.0,58140.0,0.57257657]
[1725499215746,0.12839601,58141.0,58140.0,0.57357657]
[1725499216394,0.12839601,58141.0,58140.0,0.57257657]
[1725499216395,0.36118901,58141.0,58140.0,0.57257657]
[1725499216629,0.361189,58141.0,58140.0,0.63257657]
[1725499216846,0.361189,58141.0,58140.0,0.63357657]
[1725499217068,0.361189,58141.0,58140.0,0.63257657]
[1725499217286,0.462189,58141.0,58140.0,0.76751956]
[1725499217542,0.1987832,58141.0,58140.0,0.64157657]
[1725499218432,0.1977832,58141.0,58140.0,0.63557657]
[1725499218650,0.6793692,58141.0,58140.0,0.63557657]
[1725499218901,0.6803692,58141.0,58140.0,0.61772257]
[1725499221325,0.6803692,58141.0,58140.0,0.72085224]
[1725499221784,0.6803692,58141.0,58140.0,0.61772257]
[1725499225611,0.6803692,58141.0,58140.0,0.69506059]
[1725499225808,0.6803692,58141.0,58140.0,0.61772257]
[1725499226218,0.6783692,58141.0,58140.0,0.60872257]
[1725499226478,0.6783692,58141.0,58140.0,0.71185224]
[1725499226653,0.6793692,58141.0,58140.0,0.71785224]
[1725499226876,0.6793692,58141.0,58140.0,0.72285224]
[1725499227083,0.6783692,58141.0,58140.0,0.71185224]
[1725499227291,0.6793692,58141.0,58140.0,0.71785224]
[1725499227505,0.6793692,58141.0,58140.0,0.61472257]
[1725499227952,0.6793692,58141.0,58140.0,0.62072257]
[1725499227953,0.6803692,58141.0,58140.0,0.62072257]
[1725499228651,1.18947099,58141.0,58140.0,0.62072257]